{"text_format":"3","workbook":"xlsx","n_sheets":3,"sheets":["Начало","Месечен бюджет за колежа","chart_calcs"],"not_rendered":{"charts":4,"defined_names":19},"read":"whole","date_system":"1900"}

{"sheet":"Начало","index":0,"n_rows":7,"n_cols":2,"rows_kept":7}
[null,"ЗА ТОЗИ ШАБЛОН"]
[null,"Използвайте работен лист за месечен бюджет за колежа за проследяване на приходите, разходите и паричните потоци."]
[null,"Въведете месечни приходи и разходи за изчисляване на общите приходи и разходи."]
[null,"Паричен поток се изчислява автоматично и диаграмата на паричен поток се актуализират за вас."]
[null,"Изберете плъзгача, за да получите приходи, разходи и диаграми за паричния поток за месец и година."]
[null,"Забележка: "]
[null,"Допълнителни инструкции са предоставени в колона A в работния лист. Този текст е скрит нарочно. За да премахнете текста, изберете колона А, след което изберете DELETE. За да покажете текст, изберете колона A, след което променете цвета на шрифта."]

{"sheet":"Месечен бюджет за колежа","index":1,"n_rows":72,"n_cols":16,"rows_kept":72,"merged":[[5,1,14,3],[5,4,14,11],[5,12,13,15],[15,1,19,15],[20,1,21,15]]}
["Създайте месечен бюджет за колежа в този работен лист. Заглавието на този работен лист е в клетка вдясно и в клетка B1. Полезни инструкции как да използвате този работен лист, можете да намерите в клетките в тази колона. Следващата инструкция е в клетка A4.","Месечен бюджет за колежа"]
[]
[]
["Етикет \"Приход\" е в клетка вдясно, а етикет \"Разходи\" е в клетка E4 и етикет „Паричен поток“ е в M4.",{"$f":"chart_calcs!$D$6","v":"приход за януари :"},null,null,{"$f":"chart_calcs!$D$7","v":"разходи за януари :"},{"$nulls":7},{"$f":"chart_calcs!$D$8","v":"паричен поток за януари :"}]
["Приходът се актуализира автоматично в клетката вдясно, разходите в клетка E5, а паричен поток в M5.",{"$f":"\" \"&chart_calcs!$F$6","v":{"$error":"#VALUE!"}},null,null,{"$f":"\" \"&chart_calcs!$F$7","v":{"$error":"#VALUE!"}},{"$nulls":7},{"$f":"\" \"&chart_calcs!$F$8","v":" 169 лв."}]
["Пръстеновидна диаграма, показваща резюме на прихода в клетката вдясно, резюме на разходите в клетка E6 и стълбовидна диаграма, показваща положителен и отрицателен паричен поток в клетка M6 се актуализират автоматично. Следващата инструкция е в клетка A17.","Пръстеновидната диаграма, показваща резюме на приходите за избрания месец или избраната година се намира в тази клетка.",null,null,"Пръстеновидната диаграма, показваща резюме на разходите за избрания месец или избраната година, се намира в тази клетка.",{"$nulls":7},"Стълбовидна диаграма, показваща паричния поток за избрания месец или избраната година, се намира в тази клетка."]
{"$rows_empty":9}
[null,"Линейната диаграма, показваща паричния поток за избрания месец или избраната година се намира в тази клетка."]
["Линейната диаграма на паричен поток се намира в клетката отдясно. Следващата инструкция е в клетка A21."]
[]
[]
[]
["Изберете плъзгача отдясно, за да получите данни и диаграми за месечен или годишен приход, разход и паричен поток. Следващата инструкция е в клетка A25.","В тази клетка се намира плъзгачът."]
[]
[]
[]
["Изберете месец в клетка вдясно. Натискайте ALT+СТРЕЛКА НАДОЛУ за опции, а след това СТРЕЛКА НАДОЛУ и ENTER, за да направите избор.","ЯНУ"]
["Избран период се актуализира автоматично в клетка P26.",{"$nulls":14},{"$f":"ИзбранПериод","v":{"$error":"#VALUE!"}}]
["Етикетите са в този ред, етикет „Месечна сума след приспадане на разходи“ в клетката отдясно, месеци в клетки от C27 до N27, година в O27 и процентно увеличение в P27.","Месечна сума след приспадане на разходи",{"$f":"ПървиМесец","v":{"$error":"#VALUE!"}},{"$f":"СледващМесец","v":{"$error":"#VALUE!"}},{"$f":"СледващМесец","v":{"$error":"#VALUE!"}},{"$error":"#VALUE!"},{"$error":"#VALUE!"},{"$error":"#VALUE!"},{"$error":"#VALUE!"},{"$error":"#VALUE!"},{"$error":"#VALUE!"},{"$error":"#VALUE!"},{"$error":"#VALUE!"},{"$error":"#VALUE!"},"ЗА ЯНУАРИ","% ПРИХОД "]
["Етикет „Паричен поток“ е в клетката вдясно. Паричен поток за всеки месец се изчислява автоматично в клетки от C28 до N28, годишната сума в O28 и процентно увеличение в P28. „Спарклайн“ се актуализира автоматично в Q28.","Паричен поток",{"$f":"C37-C72","v":169},{"$f":"D37-D72","v":69},192,199,204,{"v":-771,"d":"-771 "},124,154,{"v":-721,"d":"-721 "},109,34,{"v":-61,"d":"-61 "},{"$f":"SUM(C28:N28)","v":{"v":-299,"d":"-299 "}},{"$f":"INDEX($C28:$O28,,КолонаИзбранПериод)/INDEX($C$37:$O$37,,КолонаИзбранПериод)","v":{"$error":"#VALUE!"}}]
["Етикет „Кумулативен паричен поток“ е в клетката вдясно. Кумулативен паричен поток за всеки месец се изчислява автоматично в клетки от C29 до N29, годишна сума в O29 и процентно увеличение в P29. „Спарклайн“ се актуализира автоматично в Q29. Следващата инструкция е в клетка A31.","Кумулативен паричен поток",{"$f":"SUM($C$28:C$28)","v":169},{"$f":"SUM($C$28:D$28)","v":238},{"$f":"SUM($C$28:E$28)","v":430},{"$f":"SUM($C$28:F$28)","v":629},{"$f":"SUM($C$28:G$28)","v":833},{"$f":"SUM($C$28:H$28)","v":62},{"$f":"SUM($C$28:I$28)","v":186},{"$f":"SUM($C$28:J$28)","v":340},{"$f":"SUM($C$28:K$28)","v":{"v":-381,"d":"-381 "}},{"$f":"SUM($C$28:L$28)","v":{"v":-272,"d":"-272 "}},{"$f":"SUM($C$28:M$28)","v":{"v":-238,"d":"-238 "}},{"$f":"SUM($C$28:N$28)","v":{"v":-299,"d":"-299 "}}]
[]
["Етикет „Месечен приход“ е в клетката вдясно, месеци в клетки от C31 до N31, година в O31 и процентно увеличение в P31. Въведете елементи „Месечен приход“ в клетките от B32 до B36 и месечни стойности в клетките от C32 до N36. Годишният приход се изчислява автоматично в клетките от O32 до O36 и процентното увеличение в клетките от P32 до P36. Следващата инструкция е в клетка A37.","МЕСЕЧЕН ПРИХОД",{"$f":"ПървиМесец","v":{"$error":"#VALUE!"}},{"$f":"СледващМесец","v":{"$error":"#VALUE!"}},{"$error":"#VALUE!"},{"$error":"#VALUE!"},{"$error":"#VALUE!"},{"$error":"#VALUE!"},{"$error":"#VALUE!"},{"$error":"#VALUE!"},{"$error":"#VALUE!"},{"$error":"#VALUE!"},{"$error":"#VALUE!"},{"$error":"#VALUE!"},"ЗА ЯНУАРИ","% ПРИХОД "]
[null,"Финансова подкрепа (дарения, стипендии, заеми) изплатена към вас",0,0,750,750,750,750,750,750,750,750,750,750,{"$f":"SUM(C32:N32)","v":{"v":7500,"d":"7,500"}},{"$f":"INDEX($C32:$O32,,КолонаИзбранПериод)/INDEX($C$37:$O$37,,КолонаИзбранПериод)","v":{"$error":"#VALUE!"}}]
[null,"Работно възнаграждение след данъци",450,450,450,450,450,450,450,450,550,350,350,350,{"v":5200,"d":"5,200"},{"$f":"INDEX($C33:$O33,,КолонаИзбранПериод)/INDEX($C$37:$O$37,,КолонаИзбранПериод)","v":{"$error":"#VALUE!"}}]
[null,"Финансова помощ от семейството",200,200,{"v":1000,"d":"1,000"},350,350,350,350,350,350,350,350,350,{"v":4550,"d":"4,550"},{"$f":"INDEX($C34:$O34,,КолонаИзбранПериод)/INDEX($C$37:$O$37,,КолонаИзбранПериод)","v":{"$error":"#VALUE!"}}]
[null,"Теглене от спестявания",500,350,150,0,0,0,0,0,0,0,0,0,{"v":1000,"d":"1,000"},{"$f":"INDEX($C35:$O35,,КолонаИзбранПериод)/INDEX($C$37:$O$37,,КолонаИзбранПериод)","v":{"$error":"#VALUE!"}}]
[null,"Други (детски помощи, обществена помощ, подаръци и др.)",75,75,75,75,75,75,75,75,75,75,75,75,900,{"$f":"INDEX($C36:$O36,,КолонаИзбранПериод)/INDEX($C$37:$O$37,,КолонаИзбранПериод)","v":{"$error":"#VALUE!"}}]
["Етикет \"Общи приходи\" е в клетката вдясно. Общият приход за всеки месец се изчислява автоматично в клетки от C37 до N37, годишният приход в клетка O37 и процентното увеличение в P37. „Спарклайн“ се актуализира автоматично в Q37. Следващата инструкция е в клетка A39.","ОБЩИ ПРИХОДИ",{"$f":"SUM(C32:C36)","v":{"v":1225,"d":"1,225"}},{"v":1075,"d":"1,075"},{"v":2425,"d":"2,425"},{"v":1625,"d":"1,625"},{"v":1625,"d":"1,625"},{"v":1625,"d":"1,625"},{"v":1625,"d":"1,625"},{"v":1625,"d":"1,625"},{"v":1725,"d":"1,725"},{"v":1525,"d":"1,525"},{"v":1525,"d":"1,525"},{"v":1525,"d":"1,525"},{"v":19150,"d":"19,150"},{"$f":"INDEX($C37:$O37,,КолонаИзбранПериод)/INDEX($C$37:$O$37,,КолонаИзбранПериод)","v":{"$error":"#VALUE!"}}]
[]
["Етикет „Месечни разходи“ е в клетката вдясно, месеци в клетки от C39 до N39, година в O39 и процентно увеличение в P39.","МЕСЕЧНИ РАЗХОДИ",{"$f":"ПървиМесец","v":{"$error":"#VALUE!"}},{"$f":"СледващМесец","v":{"$error":"#VALUE!"}},{"$error":"#VALUE!"},{"$error":"#VALUE!"},{"$error":"#VALUE!"},{"$error":"#VALUE!"},{"$error":"#VALUE!"},{"$error":"#VALUE!"},{"$error":"#VALUE!"},{"$error":"#VALUE!"},{"$error":"#VALUE!"},{"$error":"#VALUE!"},"ЗА ЯНУАРИ","% ПРИХОД "]
["Въведете или променете разходен елемент в клетката вдясно и месечни стойности в клетките от C40 до N43. Годишната стойност се изчислява автоматично в клетките от O40 до O43 и процентното увеличение в клетките от P40 до P43. „Спарклайн“ се актуализира автоматично в Q40. Следващата инструкция е в клетка A45.","Храна и квартира",{"$f":"SUM(C41:C43)","v":565},565,565,565,565,565,565,565,565,565,565,565,{"$f":"SUM(C40:N40)","v":{"v":6780,"d":"6,780"}},{"$f":"INDEX($C40:$O40,,КолонаИзбранПериод)/INDEX($C$72:$O$72,,КолонаИзбранПериод)","v":{"$error":"#VALUE!"}}]
[null,null,315,315,315,315,315,315,315,315,315,315,315,315,{"$f":"SUM(C41:N41)","v":{"v":3780,"d":"3,780"}},{"$f":"INDEX($C41:$O41,,КолонаИзбранПериод)/INDEX($C$72:$O$72,,КолонаИзбранПериод)","v":{"$error":"#VALUE!"}}]
[null,null,200,200,200,200,200,200,200,200,200,200,200,200,{"$f":"SUM(C42:N42)","v":{"v":2400,"d":"2,400"}},{"$f":"INDEX($C42:$O42,,КолонаИзбранПериод)/INDEX($C$72:$O$72,,КолонаИзбранПериод)","v":{"$error":"#VALUE!"}}]
[null,null,50,50,50,50,50,50,50,50,50,50,50,50,{"$f":"SUM(C43:N43)","v":600},{"$f":"INDEX($C43:$O43,,КолонаИзбранПериод)/INDEX($C$72:$O$72,,КолонаИзбранПериод)","v":{"$error":"#VALUE!"}}]
[]
["Въведете или променете разходен елемент в клетката вдясно и месечни стойности в клетките от C45 до N47. Годишната стойност се изчислява автоматично в клетките от O45 до O47 и процентното увеличение в клетките от P45 до P47. „Спарклайн“ се актуализира автоматично в Q45. Следващата инструкция е в клетка A49.","Обучение и такси",{"$f":"SUM(C46:C47)","v":0},0,750,0,0,650,0,0,650,0,0,0,{"$f":"SUM(C45:N45)","v":{"v":2050,"d":"2,050"}},{"$f":"INDEX($C45:$O45,,КолонаИзбранПериод)/INDEX($C$72:$O$72,,КолонаИзбранПериод)","v":{"$error":"#VALUE!"}}]
[null,null,0,0,500,0,0,500,0,0,500,0,0,0,{"$f":"SUM(C46:N46)","v":{"v":1500,"d":"1,500"}},{"$f":"INDEX($C46:$O46,,КолонаИзбранПериод)/INDEX($C$72:$O$72,,КолонаИзбранПериод)","v":{"$error":"#VALUE!"}}]
[null,null,0,0,250,0,0,150,0,0,150,0,0,0,{"$f":"SUM(C47:N47)","v":550},{"$f":"INDEX($C47:$O47,,КолонаИзбранПериод)/INDEX($C$72:$O$72,,КолонаИзбранПериод)","v":{"$error":"#VALUE!"}}]
[]
["Въведете или променете разходен елемент в клетката вдясно и месечни стойности в клетките от C49 до N51. Годишната стойност се изчислява автоматично в клетките от O49 до O51 и процентното увеличение в клетките от P49 до P51. „Спарклайн“ се актуализира автоматично в Q49. Следващата инструкция е в клетка A53.","Книги и пособия",{"$f":"SUM(C50:C51)","v":0},0,325,20,20,325,10,10,400,15,15,15,{"$f":"SUM(C49:N49)","v":{"v":1155,"d":"1,155"}},{"$f":"INDEX($C49:$O49,,КолонаИзбранПериод)/INDEX($C$72:$O$72,,КолонаИзбранПериод)","v":{"$error":"#VALUE!"}}]
[null,null,0,0,225,0,0,275,0,0,325,0,0,0,{"$f":"SUM(C50:N50)","v":825},{"$f":"INDEX($C50:$O50,,КолонаИзбранПериод)/INDEX($C$72:$O$72,,КолонаИзбранПериод)","v":{"$error":"#VALUE!"}}]
[null,null,0,0,100,20,20,50,10,10,75,15,15,15,{"$f":"SUM(C51:N51)","v":330},{"$f":"INDEX($C51:$O51,,КолонаИзбранПериод)/INDEX($C$72:$O$72,,КолонаИзбранПериод)","v":{"$error":"#VALUE!"}}]
[]
["Въведете или променете разходен елемент в клетката вдясно и месечни стойности в клетките от C53 до N57. Годишната стойност се изчислява автоматично в клетките от O53 до O57 и процентното увеличение в клетките от P53 до P57. „Спарклайн“ се актуализира автоматично в Q53. Следващата инструкция е в клетка A59.","Транспорт",{"$f":"SUM(C54:C57)","v":224},174,174,219,174,174,274,219,174,174,224,269,{"$f":"SUM(C53:N53)","v":{"v":2473,"d":"2,473"}},{"$f":"INDEX($C53:$O53,,КолонаИзбранПериод)/INDEX($C$72:$O$72,,КолонаИзбранПериод)","v":{"$error":"#VALUE!"}}]
[null,null,30,30,30,75,30,30,30,75,30,30,30,75,{"$f":"SUM(C54:N54)","v":495},{"$f":"INDEX($C54:$O54,,КолонаИзбранПериод)/INDEX($C$72:$O$72,,КолонаИзбранПериод)","v":{"$error":"#VALUE!"}}]
[null,null,129,129,129,129,129,129,129,129,129,129,129,129,{"$f":"SUM(C55:N55)","v":{"v":1548,"d":"1,548"}},{"$f":"INDEX($C55:$O55,,КолонаИзбранПериод)/INDEX($C$72:$O$72,,КолонаИзбранПериод)","v":{"$error":"#VALUE!"}}]
[null,null,15,15,15,15,15,15,15,15,15,15,15,15,{"$f":"SUM(C56:N56)","v":180},{"$f":"INDEX($C56:$O56,,КолонаИзбранПериод)/INDEX($C$72:$O$72,,КолонаИзбранПериод)","v":{"$error":"#VALUE!"}}]
[null,null,50,0,0,0,0,0,100,0,0,0,50,50,{"$f":"SUM(C57:N57)","v":250},{"$f":"INDEX($C57:$O57,,КолонаИзбранПериод)/INDEX($C$72:$O$72,,КолонаИзбранПериод)","v":{"$error":"#VALUE!"}}]
[]
["Въведете или променете разходен елемент в клетката вдясно и месечни стойности в клетките от C59 до N65. Годишната стойност се изчислява автоматично в клетките от O59 до O65 и процентното увеличение в клетките от P59 до P65. „Спарклайн“ се актуализира автоматично в Q59. Следващата инструкция е в клетка A67.","Допълнителни",{"$f":"SUM(C60:C65)","v":69},69,169,369,419,444,419,419,394,394,419,469,{"$f":"SUM(C59:N59)","v":{"v":4053,"d":"4,053"}},{"$f":"INDEX($C59:$O59,,КолонаИзбранПериод)/INDEX($C$72:$O$72,,КолонаИзбранПериод)","v":{"$error":"#VALUE!"}}]
[null,null,0,0,0,50,100,100,100,100,75,75,100,100,800,{"$f":"INDEX($C60:$O60,,КолонаИзбранПериод)/INDEX($C$72:$O$72,,КолонаИзбранПериод)","v":{"$error":"#VALUE!"}}]
[null,null,69,69,69,69,69,69,69,69,69,69,69,69,828,{"$f":"INDEX($C61:$O61,,КолонаИзбранПериод)/INDEX($C$72:$O$72,,КолонаИзбранПериод)","v":{"$error":"#VALUE!"}}]
[null,null,0,0,0,0,0,25,0,0,0,0,0,50,75,{"$f":"INDEX($C62:$O62,,КолонаИзбранПериод)/INDEX($C$72:$O$72,,КолонаИзбранПериод)","v":{"$error":"#VALUE!"}}]
[null,null,0,0,100,100,100,100,100,100,100,100,100,100,{"v":1000,"d":"1,000"},{"$f":"INDEX($C63:$O63,,КолонаИзбранПериод)/INDEX($C$72:$O$72,,КолонаИзбранПериод)","v":{"$error":"#VALUE!"}}]
[null,null,0,0,0,50,50,50,50,50,50,50,50,50,450,{"$f":"INDEX($C64:$O64,,КолонаИзбранПериод)/INDEX($C$72:$O$72,,КолонаИзбранПериод)","v":{"$error":"#VALUE!"}}]
[null,null,0,0,0,100,100,100,100,100,100,100,100,100,900,{"$f":"INDEX($C65:$O65,,КолонаИзбранПериод)/INDEX($C$72:$O$72,,КолонаИзбранПериод)","v":{"$error":"#VALUE!"}}]
[]
["Въведете или променете разходен елемент в клетката вдясно и месечни стойности в клетките от C67 до N70. Годишната стойност се изчислява автоматично в клетките от O67 до O70 и процентното увеличение в клетките от P67 до P70. „Спарклайн“ се актуализира автоматично в Q67. Следващото указание е в клетка A72.","Други разходи",{"$f":"SUM(C68:C70)","v":198},{"$f":"SUM(D68:D70)","v":198},250,253,243,238,233,258,263,268,268,268,{"$f":"SUM(C67:N67)","v":{"v":2938,"d":"2,938"}},{"$f":"INDEX($C67:$O67,,КолонаИзбранПериод)/INDEX($C$72:$O$72,,КолонаИзбранПериод)","v":{"$error":"#VALUE!"}}]
[null,null,123,123,123,123,123,123,123,123,123,123,123,123,{"$f":"SUM(C68:N68)","v":{"v":1476,"d":"1,476"}},{"$f":"INDEX($C68:$O68,,КолонаИзбранПериод)/INDEX($C$72:$O$72,,КолонаИзбранПериод)","v":{"$error":"#VALUE!"}}]
[null,null,0,0,52,55,45,40,35,60,65,70,70,70,{"$f":"SUM(C69:N69)","v":562},{"$f":"INDEX($C69:$O69,,КолонаИзбранПериод)/INDEX($C$72:$O$72,,КолонаИзбранПериод)","v":{"$error":"#VALUE!"}}]
[null,null,75,75,75,75,75,75,75,75,75,75,75,75,{"$f":"SUM(C70:N70)","v":900},{"$f":"INDEX($C70:$O70,,КолонаИзбранПериод)/INDEX($C$72:$O$72,,КолонаИзбранПериод)","v":{"$error":"#VALUE!"}}]
[]
["Етикет \"Общи разходи\" е в клетката вдясно. Общите разходи за всеки месец се изчисляват автоматично в клетките от C72 до N72, годишни разходи в клетка O72 и процентно увеличение в клетка P72. „Спарклайн“ се актуализира автоматично в Q72.","ОБЩИ РАЗХОДИ",{"$f":"SUM(C40,C45,C49,C53,C59,C67)","v":{"v":1056,"d":"1,056"}},{"v":1006,"d":"1,006"},{"v":2233,"d":"2,233"},{"v":1426,"d":"1,426"},{"v":1421,"d":"1,421"},{"v":2396,"d":"2,396"},{"v":1501,"d":"1,501"},{"v":1471,"d":"1,471"},{"v":2446,"d":"2,446"},{"v":1416,"d":"1,416"},{"v":1491,"d":"1,491"},{"v":1586,"d":"1,586"},{"$f":"SUM(C72:N72)","v":{"v":19449,"d":"19,449"}},{"$f":"INDEX($C72:$O72,,КолонаИзбранПериод)/INDEX($C$72:$O$72,,КолонаИзбранПериод)","v":{"$error":"#VALUE!"}}]

{"sheet":"chart_calcs","index":2,"n_rows":23,"n_cols":16,"rows_kept":23,"hidden":true}
["*** Този лист трябва да остане СКРИТ ***"]
[]
[{"$nulls":3},{"$f":"IFERROR(LOWER(TEXT(VALUE(ИзбранПериод&\" 1\"),\"mmmm\")),\"за януари \")","v":"за януари "}]
[]
[{"$nulls":3},"Заглавия на динамични диаграми "]
[{"$nulls":3},{"$f":"\"приход \"&D3&\":\"","v":"приход за януари :"},null,{"$f":"TEXT(INDEX('Месечен бюджет за колежа'!$C$37:$O$37,,КолонаИзбранПериод),\"# ##0 лв.\")","v":{"$error":"#VALUE!"}}]
[{"$nulls":3},{"$f":"\"разходи \"&D3&\":\"","v":"разходи за януари :"},null,{"$f":"TEXT(INDEX('Месечен бюджет за колежа'!$C$72:$O$72,,КолонаИзбранПериод),\"# ##0 лв.\")","v":{"$error":"#VALUE!"}}]
[{"$nulls":3},{"$f":"\"паричен поток \"&D3&\":\"","v":"паричен поток за януари :"},{"$f":"INDEX('Месечен бюджет за колежа'!C28:O28,СтойностПлъзгач)","v":169},{"$f":"TEXT(E8,\"# ##0 лв.\")","v":"169 лв."}]
[]
[]
[]
[{"$nulls":3},{"$f":"LOWER('Месечен бюджет за колежа'!C27)","v":{"$error":"#VALUE!"}},{"$f":"LOWER('Месечен бюджет за колежа'!D27)","v":{"$error":"#VALUE!"}},{"$f":"LOWER('Месечен бюджет за колежа'!E27)","v":{"$error":"#VALUE!"}},{"$f":"LOWER('Месечен бюджет за колежа'!F27)","v":{"$error":"#VALUE!"}},{"$f":"LOWER('Месечен бюджет за колежа'!G27)","v":{"$error":"#VALUE!"}},{"$f":"LOWER('Месечен бюджет за колежа'!H27)","v":{"$error":"#VALUE!"}},{"$f":"LOWER('Месечен бюджет за колежа'!I27)","v":{"$error":"#VALUE!"}},{"$f":"LOWER('Месечен бюджет за колежа'!J27)","v":{"$error":"#VALUE!"}},{"$f":"LOWER('Месечен бюджет за колежа'!K27)","v":{"$error":"#VALUE!"}},{"$f":"LOWER('Месечен бюджет за колежа'!L27)","v":{"$error":"#VALUE!"}},{"$f":"LOWER('Месечен бюджет за колежа'!M27)","v":{"$error":"#VALUE!"}},{"$f":"LOWER('Месечен бюджет за колежа'!N27)","v":{"$error":"#VALUE!"}},{"$f":"LOWER('Месечен бюджет за колежа'!O27)","v":"за януари"}]
[null,null,"Стойност Плъзгач: ",1]
[null,null,"Диаграма на паричния поток: ",{"$f":"IF(ИзбранПериод='Месечен бюджет за колежа'!C$31,IF('Месечен бюджет за колежа'!$C$28:$O$28>=0,'Месечен бюджет за колежа'!$C$28:$O$28,NA()),NA())","v":{"$error":"#VALUE!"}},{"$f":"IF(ИзбранПериод='Месечен бюджет за колежа'!D$31,IF('Месечен бюджет за колежа'!$C$28:$O$28>=0,'Месечен бюджет за колежа'!$C$28:$O$28,NA()),NA())","v":{"$error":"#VALUE!"}},{"$f":"IF(ИзбранПериод='Месечен бюджет за колежа'!E$31,IF('Месечен бюджет за колежа'!$C$28:$O$28>=0,'Месечен бюджет за колежа'!$C$28:$O$28,NA()),NA())","v":{"$error":"#VALUE!"}},{"$f":"IF(ИзбранПериод='Месечен бюджет за колежа'!F$31,IF('Месечен бюджет за колежа'!$C$28:$O$28>=0,'Месечен бюджет за колежа'!$C$28:$O$28,NA()),NA())","v":{"$error":"#VALUE!"}},{"$f":"IF(ИзбранПериод='Месечен бюджет за колежа'!G$31,IF('Месечен бюджет за колежа'!$C$28:$O$28>=0,'Месечен бюджет за колежа'!$C$28:$O$28,NA()),NA())","v":{"$error":"#VALUE!"}},{"$f":"IF(ИзбранПериод='Месечен бюджет за колежа'!H$31,IF('Месечен бюджет за колежа'!$C$28:$O$28>=0,'Месечен бюджет за колежа'!$C$28:$O$28,NA()),NA())","v":{"$error":"#VALUE!"}},{"$f":"IF(ИзбранПериод='Месечен бюджет за колежа'!I$31,IF('Месечен бюджет за колежа'!$C$28:$O$28>=0,'Месечен бюджет за колежа'!$C$28:$O$28,NA()),NA())","v":{"$error":"#VALUE!"}},{"$f":"IF(ИзбранПериод='Месечен бюджет за колежа'!J$31,IF('Месечен бюджет за колежа'!$C$28:$O$28>=0,'Месечен бюджет за колежа'!$C$28:$O$28,NA()),NA())","v":{"$error":"#VALUE!"}},{"$f":"IF(ИзбранПериод='Месечен бюджет за колежа'!K$31,IF('Месечен бюджет за колежа'!$C$28:$O$28>=0,'Месечен бюджет за колежа'!$C$28:$O$28,NA()),NA())","v":{"$error":"#VALUE!"}},{"$f":"IF(ИзбранПериод='Месечен бюджет за колежа'!L$31,IF('Месечен бюджет за колежа'!$C$28:$O$28>=0,'Месечен бюджет за колежа'!$C$28:$O$28,NA()),NA())","v":{"$error":"#VALUE!"}},{"$f":"IF(ИзбранПериод='Месечен бюджет за колежа'!M$31,IF('Месечен бюджет за колежа'!$C$28:$O$28>=0,'Месечен бюджет за колежа'!$C$28:$O$28,NA()),NA())","v":{"$error":"#VALUE!"}},{"$f":"IF(ИзбранПериод='Месечен бюджет за колежа'!N$31,IF('Месечен бюджет за колежа'!$C$28:$O$28>=0,'Месечен бюджет за колежа'!$C$28:$O$28,NA()),NA())","v":{"$error":"#VALUE!"}},{"$f":"IF(ИзбранПериод='Месечен бюджет за колежа'!O$31,IF('Месечен бюджет за колежа'!$C$28:$O$28>=0,'Месечен бюджет за колежа'!$C$28:$O$28,NA()),NA())","v":{"$error":"#VALUE!"}}]
[null,null,"Кумулативно: ",{"$f":"IF(ИзбранПериод='Месечен бюджет за колежа'!C$31,IF('Месечен бюджет за колежа'!$C$28:$O$28<0,'Месечен бюджет за колежа'!$C$28:$O$28,NA()),NA())","v":{"$error":"#VALUE!"}},{"$f":"IF(ИзбранПериод='Месечен бюджет за колежа'!D$31,IF('Месечен бюджет за колежа'!$C$28:$O$28<0,'Месечен бюджет за колежа'!$C$28:$O$28,NA()),NA())","v":{"$error":"#VALUE!"}},{"$f":"IF(ИзбранПериод='Месечен бюджет за колежа'!E$31,IF('Месечен бюджет за колежа'!$C$28:$O$28<0,'Месечен бюджет за колежа'!$C$28:$O$28,NA()),NA())","v":{"$error":"#VALUE!"}},{"$f":"IF(ИзбранПериод='Месечен бюджет за колежа'!F$31,IF('Месечен бюджет за колежа'!$C$28:$O$28<0,'Месечен бюджет за колежа'!$C$28:$O$28,NA()),NA())","v":{"$error":"#VALUE!"}},{"$f":"IF(ИзбранПериод='Месечен бюджет за колежа'!G$31,IF('Месечен бюджет за колежа'!$C$28:$O$28<0,'Месечен бюджет за колежа'!$C$28:$O$28,NA()),NA())","v":{"$error":"#VALUE!"}},{"$f":"IF(ИзбранПериод='Месечен бюджет за колежа'!H$31,IF('Месечен бюджет за колежа'!$C$28:$O$28<0,'Месечен бюджет за колежа'!$C$28:$O$28,NA()),NA())","v":{"$error":"#VALUE!"}},{"$f":"IF(ИзбранПериод='Месечен бюджет за колежа'!I$31,IF('Месечен бюджет за колежа'!$C$28:$O$28<0,'Месечен бюджет за колежа'!$C$28:$O$28,NA()),NA())","v":{"$error":"#VALUE!"}},{"$f":"IF(ИзбранПериод='Месечен бюджет за колежа'!J$31,IF('Месечен бюджет за колежа'!$C$28:$O$28<0,'Месечен бюджет за колежа'!$C$28:$O$28,NA()),NA())","v":{"$error":"#VALUE!"}},{"$f":"IF(ИзбранПериод='Месечен бюджет за колежа'!K$31,IF('Месечен бюджет за колежа'!$C$28:$O$28<0,'Месечен бюджет за колежа'!$C$28:$O$28,NA()),NA())","v":{"$error":"#VALUE!"}},{"$f":"IF(ИзбранПериод='Месечен бюджет за колежа'!L$31,IF('Месечен бюджет за колежа'!$C$28:$O$28<0,'Месечен бюджет за колежа'!$C$28:$O$28,NA()),NA())","v":{"$error":"#VALUE!"}},{"$f":"IF(ИзбранПериод='Месечен бюджет за колежа'!M$31,IF('Месечен бюджет за колежа'!$C$28:$O$28<0,'Месечен бюджет за колежа'!$C$28:$O$28,NA()),NA())","v":{"$error":"#VALUE!"}},{"$f":"IF(ИзбранПериод='Месечен бюджет за колежа'!N$31,IF('Месечен бюджет за колежа'!$C$28:$O$28<0,'Месечен бюджет за колежа'!$C$28:$O$28,NA()),NA())","v":{"$error":"#VALUE!"}},{"$f":"IF(ИзбранПериод='Месечен бюджет за колежа'!O$31,IF('Месечен бюджет за колежа'!$C$28:$O$28<0,'Месечен бюджет за колежа'!$C$28:$O$28,NA()),NA())","v":{"$error":"#VALUE!"}}]
[]
[]
[null,null,"ДИАГРАМАТА ЗА ДАННИ НА ПРИХОДИТЕ"]
[null,null,"Финансова подкрепа (дарения, стипендии, заеми) изплатена към вас",{"$f":"'Месечен бюджет за колежа'!P32","v":{"$error":"#VALUE!"}}]
[null,null,"Работно възнаграждение след данъци",{"$f":"'Месечен бюджет за колежа'!P33","v":{"$error":"#VALUE!"}}]
[null,null,"Финансова помощ от семейството",{"$f":"'Месечен бюджет за колежа'!P34","v":{"$error":"#VALUE!"}}]
[null,null,"Теглене от спестявания",{"$f":"'Месечен бюджет за колежа'!P35","v":{"$error":"#VALUE!"}}]
[null,null,"Други (детски помощи, обществена помощ, подаръци и др.)",{"$f":"'Месечен бюджет за колежа'!P36","v":{"$error":"#VALUE!"}}]